bitfinex-derivatives/quotes_BTCF0:USTF0_20241210
["timestamp","ask_amount","ask_price","bid_price","bid_amount"]
[1733847681567,0.02142251,95549.0,95548.0,0.052306]
[1733847681765,0.65137097,95560.0,95540.0,0.41323]
[1733847681968,0.65137097,95560.0,95548.0,0.00012]
[1733847681969,0.052305,95549.0,95548.0,0.00012]
[1733847682172,0.3608,95549.0,95521.0,0.05232]
[1733847682372,0.02115234,95557.0,95526.0,0.36074811]
[1733847682373,0.052312,95537.0,95526.0,0.36074811]
[1733847682573,0.3608,95548.0,95526.0,0.36074811]
[1733847682973,0.007,95531.0,95530.0,0.052316]
[1733847683374,0.3608,95550.0,95540.0,0.05231]
[1733847683573,0.65137097,95550.0,95540.0,0.05831]
[1733847683774,0.70367597,95550.0,95549.0,0.00012]
[1733847683968,0.413105,95550.0,95549.0,0.00012]
[1733847684187,0.052305,95550.0,95549.0,0.00012]
[1733847684367,0.3608,95552.0,95549.0,0.00012]
[1733847684568,0.3608,95552.0,95550.0,1.5]
[1733847684774,0.3608,95552.0,95551.0,0.00012]
[1733847685383,0.3608,95552.0,95550.0,0.052304]
[1733847685679,6e-05,95551.0,95550.0,0.052304]
[1733847685875,6e-05,95551.0,95537.0,0.3608]
[1733847686082,0.29057097,95550.0,95530.0,0.001]
[1733847686379,0.001,95548.0,95543.0,0.052308]
[1733847686574,0.001,95548.0,95536.0,0.3608]
[1733847686780,0.3698,95552.0,95536.0,0.3608]
[1733847686968,0.3698,95552.0,95551.0,0.052304]
[1733847687173,0.3608,95568.0,95551.0,1.50012]
[1733847687370,0.052298,95563.0,95557.0,0.0523]
[1733847687770,0.052302,95556.0,95554.0,0.3608]
[1733847688176,6e-05,95555.0,95544.0,0.3608]
[1733847688377,6e-05,95555.0,95539.0,0.00934421]
[1733847688378,6e-05,95555.0,95553.0,0.3608]
[1733847688577,0.052299,95560.0,95553.0,0.052303]
[1733847688786,0.413099,95560.0,95557.0,0.001]
[1733847689080,0.009,95563.0,95562.0,0.052298]
[1733847689378,0.00144,95579.0,95576.0,0.05229]
[1733847689685,0.00144,95579.0,95570.0,0.052294]
[1733847689686,0.36603132,95578.0,95570.0,0.052294]
[1733847689984,0.00523138,95577.0,95562.0,0.052298]
[1733847690282,0.00523138,95577.0,95557.0,0.36248]
[1733847690283,0.0523,95558.0,95557.0,0.001]
[1733847690678,0.05236,95558.0,95557.0,0.001]
[1733847691178,0.3608,95568.0,95563.0,0.052297]
[1733847691179,0.052297,95564.0,95563.0,0.052297]
[1733847691382,0.00523138,95577.0,95561.0,0.3608]
[1733847691684,0.00523138,95577.0,95561.0,0.36073011]
[1733847691685,6e-05,95562.0,95561.0,0.36073011]
[1733847692074,6e-05,95562.0,95561.0,0.41302911]
[1733847692684,6e-05,95562.0,95557.0,0.001]
[1733847692685,0.0523,95558.0,95557.0,0.001]
[1733847693080,0.05236,95558.0,95557.0,0.001]
[1733847693387,0.3608,95562.0,95561.0,0.052299]
[1733847693773,0.65137097,95580.0,95561.0,0.00012]
[1733847693774,0.052294,95570.0,95561.0,0.00012]
[1733847694086,0.3608,95580.0,95569.0,0.00012]
[1733847694283,0.3608,95591.0,95569.0,0.00012]
[1733847694479,0.3608,95591.0,95576.0,0.05241]
[1733847694685,0.052287,95583.0,95578.0,0.052289]
[1733847695193,0.3608,95591.0,95578.0,0.052289]
[1733847695386,0.052284,95588.0,95587.0,0.052284]
[1733847695576,0.052284,95588.0,95569.0,0.052294]
[1733847695577,0.3608,95591.0,95590.0,0.052283]
[1733847695886,0.1,95600.0,95599.0,0.052278]
[1733847696187,0.29057097,95630.0,95602.0,0.052276]
[1733847696188,0.02049557,95630.0,95602.0,0.052276]
[1733847696377,0.052263,95627.0,95626.0,0.052263]
[1733847696581,0.3608,95634.0,95629.0,0.052261]
[1733847696885,0.05226,95631.0,95629.0,0.052261]
[1733847697083,0.3608,95634.0,95617.0,0.3608]
[1733847697277,0.3608,95634.0,95632.0,0.05226]
[1733847697482,0.3608,95634.0,95633.0,0.00012]
[1733847697679,0.3608,95634.0,95630.0,0.35168]
[1733847697885,0.3608,95634.0,95608.0,0.36144]
[1733847698086,0.052272,95609.0,95608.0,0.052273]
[1733847698291,0.052272,95609.0,95601.0,0.3516]
[1733847698292,0.3608,95609.0,95601.0,0.3516]
[1733847698483,0.3608,95628.0,95606.0,0.3608]
[1733847698683,0.3608,95640.0,95636.0,0.052257]
[1733847698884,0.3608,95640.0,95638.0,0.052256]
[1733847699086,0.38467,95640.0,95638.0,0.052256]
[1733847699393,0.02387,95640.0,95638.0,0.403856]
[1733847699587,0.3608,95650.0,95638.0,0.3516]
[1733847699796,0.052252,95646.0,95642.0,0.052254]
[1733847699988,0.41305,95650.0,95649.0,0.00012]
[1733847700585,0.052254,95643.0,95638.0,0.29935411]
[1733847700790,0.052256,95640.0,95638.0,0.29935411]
[1733847700984,6e-05,95639.0,95638.0,0.29935411]
[1733847701291,0.3608,95658.0,95648.0,0.052251]
[1733847701489,0.052247,95656.0,95644.0,0.3608]
[1733847701684,0.052247,95656.0,95645.0,0.052253]
[1733847701898,0.005227,95657.0,95656.0,0.052247]
[1733847702385,0.052238,95673.0,95672.0,0.052238]
[1733847702784,0.413038,95673.0,95672.0,0.00012]
[1733847702996,0.41826413,95673.0,95672.0,0.00012]
[1733847703188,0.05223,95686.0,95672.0,0.00012]
[1733847703189,0.00056001,95695.0,95672.0,1.02172]
[1733847703496,0.052217,95711.0,95694.0,0.7216]
[1733847703694,0.29057097,95740.0,95694.0,0.7216]
[1733847703695,0.052218,95708.0,95698.0,0.052223]
[1733847703895,0.052218,95708.0,95699.0,0.00012]
[1733847704084,0.7583,95743.0,95699.0,1.50012]
[1733847704085,0.3975,95743.0,95699.0,1.50012]
[1733847704287,0.3975,95743.0,95739.0,0.3608]
[1733847704495,0.45897828,95743.0,95742.0,0.00012]
[1733847704893,0.56347203,95743.0,95742.0,0.00012]
[1733847705089,0.052207,95729.0,95728.0,0.3608]
[1733847705696,0.052212,95719.0,95718.0,0.3608]
[1733847705995,0.052272,95719.0,95718.0,0.3608]
[1733847706182,6e-05,95719.0,95718.0,0.3608]
[1733847706586,0.00238,95748.0,95718.0,0.3608]
[1733847706587,0.02087076,95743.0,95718.0,0.3608]
[1733847706796,0.3294,95787.0,95681.0,0.357233]
[1733847706797,0.14935192,95796.0,95742.0,0.3608]
[1733847706998,0.65137097,95810.0,95788.0,0.3608]
[1733847706999,0.00925352,95798.0,95788.0,0.3608]
[1733847707187,0.052151,95832.0,95788.0,0.3608]
[1733847707188,0.15664301,95796.0,95788.0,0.3608]
[1733847707384,0.052181,95777.0,95776.0,0.3608]
[1733847707590,0.052181,95777.0,95772.0,0.3608]
[1733847707591,0.052186,95768.0,95767.0,0.3608]
[1733847708004,0.052186,95768.0,95767.0,0.34071156]
[1733847708188,0.45657776,95768.0,95718.0,0.001]
[1733847708392,0.45657776,95768.0,95716.0,0.35128]
[1733847708393,0.3608,95729.0,95716.0,0.35128]
[1733847708583,0.052208,95727.0,95703.0,0.413021]
[1733847708788,0.3608,95720.0,95711.0,0.02038778]
[1733847708996,0.3608,95728.0,95711.0,0.02038778]
[1733847709194,0.3608,95728.0,95718.0,0.053213]
[1733847709395,0.002,95719.0,95718.0,0.053213]
[1733847709791,0.002,95719.0,95718.0,0.00084711]
[1733847710098,0.002,95719.0,95718.0,0.05306011]
[1733847710397,0.3628,95719.0,95718.0,0.00084711]
[1733847711697,0.052216,95712.0,95711.0,0.004]
[1733847711890,0.052231,95685.0,95670.0,0.3608]
[1733847712202,0.3608,95681.0,95648.0,0.36047419]
[1733847712502,0.3608,95681.0,95665.0,0.02134591]
[1733847712703,0.3608,95694.0,95680.0,0.36092053]
[1733847712892,0.3608,95681.0,95671.0,0.052238]
[1733847713200,6e-05,95672.0,95671.0,0.052238]
[1733847713795,0.0001547,95672.0,95671.0,0.052238]
[1733847713996,0.0001547,95672.0,95671.0,1.552238]
[1733847714601,0.3608,95691.0,95671.0,2.213038]
[1733847714800,0.3608,95711.0,95690.0,0.052228]
[1733847715105,0.003,95719.0,95710.0,0.413017]
[1733847715294,0.3608,95746.0,95718.0,0.3608]
[1733847715494,0.3608,95746.0,95736.0,0.29057097]
[1733847715685,0.3608,95738.0,95736.0,0.34277397]
[1733847715887,0.3608,95738.0,95736.0,0.29040808]
[1733847716202,0.3108,95738.0,95737.0,1.5]
[1733847716400,0.3608,95746.0,95745.0,0.052198]
[1733847716606,0.3608,95746.0,95745.0,0.3608]
[1733847716607,0.003,95746.0,95745.0,0.3608]
[1733847716903,0.052185,95770.0,95745.0,0.36092]
[1733847717097,0.052185,95770.0,95757.0,0.04415563]
[1733847717098,0.3608,95766.0,95757.0,0.04415563]
[1733847718103,0.412987,95766.0,95757.0,0.04094148]
[1733847718292,0.052188,95764.0,95757.0,0.04094148]
[1733847718898,0.3608,95766.0,95745.0,0.30843411]
[1733847719099,0.052197,95748.0,95735.0,0.413003]
[1733847719303,6e-05,95746.0,95735.0,0.3608]
[1733847719700,0.052206,95731.0,95723.0,0.05221]
[1733847719897,0.3608,95737.0,95721.0,0.35112]
[1733847719898,0.052209,95726.0,95721.0,0.35112]
[1733847720103,6e-05,95724.0,95721.0,0.35112]
[1733847720298,6e-05,95722.0,95721.0,0.35112]
[1733847721414,6e-05,95722.0,95714.0,0.00012809]
[1733847721415,0.052214,95715.0,95714.0,0.00012809]
[1733847721706,0.36086,95715.0,95688.0,0.35108]
[1733847721897,0.3608,95707.0,95702.0,0.052221]
[1733847722101,0.3608,95707.0,95706.0,0.052219]
[1733847722297,0.3608,95715.0,95697.0,0.3608]
[1733847722496,0.3608,95706.0,95696.0,0.052225]
[1733847722697,0.3608,95706.0,95688.0,0.35108]
[1733847722698,0.00011221,95705.0,95688.0,0.35108]
[1733847723006,0.00011221,95705.0,95704.0,0.41302]
[1733847723203,0.00011221,95705.0,95704.0,0.05222]
[1733847723405,0.36091221,95705.0,95699.0,0.052223]
[1733847723599,0.36091221,95705.0,95688.0,0.35108]
[1733847723600,0.32331221,95705.0,95703.0,0.052221]
[1733847723797,0.17835316,95798.0,95690.0,0.29057097]
[1733847723798,0.05221,95724.0,95699.0,0.3608]
[1733847724008,0.3608,95726.0,95720.0,0.052211]
[1733847724607,4.171e-05,95721.0,95720.0,0.052211]
[1733847725004,4.171e-05,95721.0,95710.0,0.36064511]
[1733847725205,4.171e-05,95721.0,95720.0,0.052212]
[1733847725406,7.1e-07,95721.0,95720.0,0.052212]
[1733847725710,0.052165,95806.0,95720.0,0.052212]
[1733847725711,0.3608,95757.0,95755.0,0.052193]
[1733847725917,0.3608,95768.0,95767.0,0.052186]
[1733847726116,0.052184,95772.0,95767.0,0.052186]
[1733847726515,0.052184,95772.0,95771.0,0.00012]
[1733847727004,0.052185,95769.0,95758.0,0.3608]
[1733847727205,0.29057097,95780.0,95760.0,0.05219]
[1733847727404,0.29057097,95780.0,95750.0,0.3608]
[1733847727711,0.052241,95777.0,95776.0,0.00012]
[1733847727911,0.052186,95768.0,95767.0,0.001]
[1733847728112,0.052187,95766.0,95732.0,0.3608]
[1733847728420,0.052207,95729.0,95723.0,0.3608]
[1733847728604,0.3608,95737.0,95725.0,0.052209]
[1733847728918,0.413002,95737.0,95736.0,0.00012]
[1733847729121,0.3608,95737.0,95736.0,0.00012]
[1733847729433,0.052194,95753.0,95744.0,0.052198]
[1733847729722,0.052194,95753.0,95750.0,0.001]
[1733847730014,0.3608,95751.0,95750.0,0.00048574]
[1733847730310,0.34276097,95760.0,95734.0,0.3608]
[1733847730515,0.052192,95757.0,95749.0,0.052196]
[1733847730717,0.3608,95763.0,95742.0,0.3608]
[1733847731215,6e-05,95743.0,95742.0,0.36063411]
[1733847732113,6e-05,95743.0,95742.0,0.3604284]
[1733847732316,6e-05,95743.0,95742.0,0.6604284]
[1733847732507,0.005,95751.0,95750.0,0.053195]
[1733847732708,0.05218,95779.0,95750.0,0.764995]
[1733847732904,0.05218,95779.0,95767.0,0.412986]
[1733847733110,0.05218,95779.0,95767.0,0.41290372]
[1733847733511,0.052176,95786.0,95767.0,0.41290372]
[1733847733911,0.00106,95768.0,95767.0,0.41290372]
[1733847734112,0.00106,95768.0,95767.0,2.22133783]
[1733847734517,0.00106,95768.0,95767.0,1.5]
[1733847734720,0.00106,95768.0,95753.0,0.3608]
[1733847735117,0.00106,95768.0,95766.0,0.052186]
[1733847735816,6e-05,95768.0,95767.0,0.004]
[1733847736217,6e-05,95768.0,95766.0,0.052186]
[1733847736419,6e-05,95768.0,95767.0,0.003]
[1733847736826,0.1,95800.0,95776.0,0.052181]
[1733847737019,0.1,95800.0,95776.0,0.412981]
[1733847737214,0.1,95800.0,95776.0,1.91291511]
[1733847737413,0.1,95800.0,95798.0,0.052169]
[1733847737713,0.1,95800.0,95799.0,0.00012]
[1733847739419,0.4608,95800.0,95799.0,0.00012]
[1733847739614,0.1,95800.0,95799.0,0.00012]
[1733847739825,0.1,95800.0,95799.0,0.00112]
[1733847740211,0.1,95800.0,95798.0,0.052169]
[1733847740212,0.102,95800.0,95798.0,0.00092311]
[1733847740408,0.3608,95810.0,95797.0,0.3608]
[1733847740611,0.3608,95810.0,95808.0,0.052163]
[1733847740827,0.3608,95810.0,95809.0,0.00012]
[1733847741127,0.00123,95820.0,95809.0,0.00012]
[1733847741128,0.053387,95820.0,95810.0,0.052163]
[1733847741318,0.053387,95820.0,95809.0,0.00012]
[1733847741621,0.00123,95820.0,95819.0,0.052278]
[1733847742712,0.36203,95820.0,95819.0,0.00012]
[1733847742922,0.00123,95820.0,95819.0,0.00012]
[1733847743317,0.00123,95820.0,95810.0,0.29048308]
[1733847743624,0.00223,95820.0,95818.0,0.052158]
[1733847744122,0.00423,95820.0,95819.0,1.5]
[1733847744422,0.00323,95820.0,95819.0,1.5]
[1733847745815,0.764,95856.0,95819.0,1.5]
[1733847746023,0.764,95856.0,95852.0,0.05214]
[1733847746218,0.764,95856.0,95838.0,0.29057097]
[1733847746414,0.052141,95849.0,95846.0,0.052143]
[1733847746619,0.3608,95856.0,95855.0,0.00012]
[1733847746814,0.12054452,95861.0,95855.0,0.00012]
[1733847746815,0.052137,95857.0,95855.0,0.00012]
[1733847747226,0.052137,95857.0,95856.0,0.00012]
[1733847747615,0.412937,95857.0,95856.0,0.00012]
[1733847748022,0.052151,95832.0,95831.0,0.0015653]
[1733847748439,0.3608,95842.0,95831.0,0.0015653]
[1733847748728,0.3608,95845.0,95841.0,0.00012]
[1733847749128,0.3608,95845.0,95831.0,0.0015653]
[1733847749129,0.3608,95845.0,95844.0,0.052264]
[1733847749515,0.3608,95845.0,95836.0,0.36069811]
[1733847749720,0.001,95857.0,95836.0,0.36069811]
[1733847749721,0.05214,95852.0,95836.0,0.36069811]
[1733847749918,0.001,95857.0,95856.0,0.052138]
[1733847750617,0.052135,95862.0,95851.0,0.00012]
[1733847750824,0.3608,95875.0,95857.0,0.412937]
[1733847750825,0.00966717,95870.0,95857.0,0.412937]
[1733847751015,0.052134,95862.0,95861.0,0.00012]
[1733847752431,0.052134,95862.0,95834.0,0.3608]
[1733847752432,0.052146,95841.0,95830.0,0.65923411]
[1733847752731,0.052146,95841.0,95838.0,0.052147]
[1733847753127,0.3608,95846.0,95830.0,0.3078969]
[1733847753334,0.052151,95832.0,95830.0,0.00946279]
[1733847753530,0.052157,95820.0,95818.0,0.0015653]
[1733847753827,0.36086,95819.0,95818.0,0.0015653]
[1733847754026,0.36086,95819.0,95802.0,1.50967663]
[1733847754218,0.052167,95803.0,95802.0,1.50967663]
[1733847754419,0.4142,95845.0,95802.0,2.17047663]
[1733847754619,0.41484,95845.0,95837.0,0.3608]
[1733847754827,0.052144,95845.0,95842.0,0.052145]
[1733847755024,0.052144,95844.0,95842.0,0.052145]
[1733847755531,0.052144,95844.0,95838.0,0.35045911]
[1733847755923,0.052144,95844.0,95842.0,0.052145]
[1733847756827,0.052144,95844.0,95838.0,0.35045911]
[1733847756828,0.052139,95855.0,95849.0,0.052141]
[1733847757024,0.052139,95855.0,95838.0,0.35045911]
[1733847757025,0.052134,95862.0,95859.0,0.052136]
[1733847757527,0.3608,95866.0,95864.0,0.052133]
[1733847757830,0.3608,95875.0,95871.0,0.052129]
[1733847758133,0.052123,95883.0,95881.0,0.052124]
[1733847758427,0.1,95900.0,95886.0,0.052121]
[1733847758629,0.1,95900.0,95882.0,0.71119511]
[1733847758825,0.1,95900.0,95886.0,1.552241]
[1733847759926,0.1,95900.0,95898.0,0.052115]
[1733847760327,0.1,95900.0,95899.0,0.00012]
[1733847760631,1e-06,95900.0,95899.0,0.30012]
[1733847760828,1e-06,95900.0,95899.0,0.00012]
[1733847761022,1e-06,95900.0,95899.0,0.30012]
[1733847761231,1e-06,95900.0,95899.0,0.00012]
[1733847761431,1e-06,95900.0,95899.0,0.30012]
[1733847761733,0.052087,95950.0,95923.0,0.052101]
[1733847761923,0.052088,95949.0,95940.0,0.29057097]
[1733847762121,0.052088,95949.0,95941.0,0.052091]
[1733847762426,0.052088,95949.0,95934.0,0.3608]
[1733847762427,0.052246,95949.0,95934.0,0.3608]
[1733847762935,0.38183648,95972.0,95934.0,0.3608]
[1733847762936,0.3608,95974.0,95948.0,0.3608]
[1733847763232,0.3608,95974.0,95956.0,0.052083]
[1733847763443,0.3608,95974.0,95939.0,0.29066671]
[1733847763444,0.29057097,95970.0,95939.0,9.574e-05]
[1733847763739,0.412952,95940.0,95939.0,9.574e-05]
[1733847764123,6e-05,95940.0,95939.0,0.41298874]
[1733847764731,9.574e-05,95965.0,95963.0,0.052079]
[1733847764934,0.05234174,95965.0,95963.0,0.052079]
[1733847765136,0.05234174,95965.0,95963.0,0.02820809]
[1733847765536,9.574e-05,95965.0,95963.0,0.02820809]
[1733847765846,0.05234174,95965.0,95963.0,0.02820809]
[1733847766231,0.05234174,95965.0,95959.0,1.50068]
[1733847766537,0.36086,95960.0,95944.0,0.00940101]
[1733847766730,0.052087,95949.0,95942.0,0.05209]
[1733847767036,6e-05,95943.0,95940.0,0.052092]
[1733847767432,6e-05,95943.0,95936.0,0.36236355]
[1733847767433,0.052151,95941.0,95936.0,0.37162837]
[1733847767835,0.36086,95937.0,95935.0,0.052095]
[1733847768039,0.052097,95932.0,95930.0,9.84e-05]
[1733847768245,0.104343,95932.0,95930.0,9.84e-05]
[1733847768540,7.793e-05,95936.0,95934.0,0.052095]
[1733847768742,7.793e-05,95936.0,95935.0,0.3608]
[1733847768927,7.793e-05,95936.0,95935.0,0.36092]
[1733847770235,9.3e-07,95936.0,95935.0,0.36092]
[1733847770629,0.3608,95966.0,95935.0,0.66192]
[1733847770830,0.413046,95966.0,95944.0,0.36051311]
[1733847771033,0.3608,95982.0,95977.0,0.052072]
[1733847771228,0.3608,95982.0,95965.0,0.00012]
[1733847771542,0.765115,95982.0,95981.0,0.00012]
[1733847771736,0.3,95982.0,95957.0,0.00156306]
[1733847772036,0.3,95982.0,95972.0,0.052075]
[1733847772037,0.052074,95974.0,95972.0,0.052075]
[1733847772225,0.052075,95972.0,95957.0,0.00156306]
[1733847772639,6e-05,95958.0,95957.0,0.05364606]
[1733847773638,0.3608,95987.0,95986.0,0.052067]
[1733847773943,0.052126,95987.0,95986.0,0.00012]
[1733847774232,0.052126,95987.0,95975.0,1.85908569]
[1733847774436,0.052126,95987.0,95984.0,0.052068]
[1733847774628,0.052126,95987.0,95986.0,0.052067]
[1733847775230,0.052126,95987.0,95986.0,0.05145284]
[1733847775660,0.052126,95987.0,95975.0,1.86842793]
[1733847775661,0.052069,95983.0,95978.0,0.052071]
[1733847775938,0.052069,95983.0,95975.0,1.50934224]
[1733847775939,0.052071,95980.0,95975.0,0.00998224]
[1733847776238,0.052071,95980.0,95979.0,0.052071]
[1733847776239,0.052126,95980.0,95979.0,0.052071]
[1733847777042,0.008,95987.0,95974.0,0.36050511]
[1733847777343,0.008,95987.0,95986.0,0.05194133]
[1733847777944,0.112192,95987.0,95986.0,0.00012]
[1733847778146,0.008,95987.0,95986.0,0.41288873]
[1733847778436,0.1,96000.0,95997.0,0.052061]
[1733847778654,0.152126,96000.0,95998.0,0.05206]
[1733847778833,0.152126,96000.0,95999.0,0.00012]
[1733847779339,0.204185,96000.0,95999.0,0.00012]
[1733847779842,1.15553817,96000.0,95940.0,0.3608]
[1733847780138,1.15553817,96000.0,95922.0,0.3608]
[1733847780139,0.3608,95941.0,95922.0,0.31776504]
[1733847780340,0.29057097,95940.0,95939.0,0.052092]
[1733847780534,0.04010291,95941.0,95922.0,0.31776504]
[1733847780741,0.3608,95932.0,95922.0,0.31776504]
[1733847780948,6e-05,95923.0,95922.0,0.36986704]
[1733847781135,6e-05,95923.0,95922.0,0.06133453]
[1733847781637,6e-05,95923.0,95922.0,0.42213453]
[1733847782438,0.09220391,95923.0,95922.0,0.002]
[1733847782834,0.09220391,95923.0,95922.0,0.003]
[1733847783031,0.052103,95920.0,95915.0,0.052105]
[1733847783333,6e-05,95916.0,95913.0,0.052106]
[1733847783533,6e-05,95916.0,95886.0,0.36092]
[1733847783534,0.3608,95914.0,95898.0,0.052115]
[1733847783742,0.3608,95914.0,95899.0,0.00521381]
[1733847783743,0.3608,95900.0,95899.0,0.00521381]
[1733847783939,0.412914,95900.0,95899.0,0.00521381]
[1733847784246,0.45303939,95900.0,95899.0,0.00521381]
[1733847784438,0.05212,95888.0,95886.0,0.00012]
[1733847784746,0.3608,95887.0,95886.0,0.00012]
[1733847784944,0.36088248,95900.0,95886.0,0.00012]
[1733847785342,0.052121,95887.0,95886.0,0.00012]
[1733847786038,0.05320202,95887.0,95886.0,0.00012]
[1733847786245,0.00108102,95887.0,95885.0,0.052121]
[1733847787140,0.00114102,95886.0,95885.0,0.052121]
[1733847788042,0.00114102,95886.0,95885.0,1.5]
[1733847788641,0.00114102,95886.0,95867.0,0.052131]
[1733847788948,6e-05,95868.0,95866.0,0.052132]
[1733847789144,0.00108102,95867.0,95865.0,0.00133086]
[1733847789346,0.00114102,95867.0,95866.0,0.052132]
[1733847789541,0.00108102,95867.0,95866.0,0.052132]
[1733847790347,0.3608,95890.0,95866.0,0.052132]
[1733847790348,0.3608,95890.0,95889.0,0.05212]
[1733847790650,0.29057097,95920.0,95889.0,0.05212]
[1733847790651,0.3608,95911.0,95898.0,0.052115]
[1733847790838,0.3608,95921.0,95898.0,0.052115]
[1733847791039,0.3608,95921.0,95899.0,0.00012]
[1733847791234,0.3608,95913.0,95899.0,0.00012]
[1733847791641,0.052112,95903.0,95899.0,0.00012]
[1733847791940,0.3608,95904.0,95899.0,0.00012]
[1733847792145,0.00608248,95900.0,95898.0,0.00086911]
[1733847792346,0.00608248,95900.0,95898.0,0.05298411]
[1733847793648,0.00608248,95900.0,95878.0,0.052126]
[1733847793649,0.05919648,95900.0,95878.0,0.052126]
[1733847793840,0.3608,95881.0,95864.0,0.3608]
[1733847794051,0.052132,95867.0,95862.0,1.5]
[1733847794247,0.052132,95867.0,95862.0,0.00064]
[1733847794434,0.052132,95867.0,95855.0,0.00010683]
[1733847794640,0.052138,95856.0,95855.0,0.00010683]
[1733847794946,0.412998,95856.0,95855.0,0.00010683]
[1733847795346,0.412998,95856.0,95840.0,0.052146]
[1733847795347,0.36086,95856.0,95840.0,0.052146]
[1733847795547,0.412944,95844.0,95829.0,0.052152]
[1733847795738,0.413004,95844.0,95832.0,0.05215]
[1733847795942,0.413004,95844.0,95824.0,0.37136756]
[1733847795943,0.413004,95844.0,95833.0,1.5]
[1733847796341,0.71311056,95844.0,95833.0,0.00068]
[1733847796543,0.052154,95825.0,95824.0,0.37072756]
[1733847796840,0.41311878,95825.0,95824.0,0.37072756]
[1733847797044,0.36096478,95825.0,95809.0,9.725e-05]
[1733847797261,0.412963,95810.0,95809.0,9.725e-05]
[1733847797655,0.3608,95810.0,95794.0,0.00064]
[1733847797954,0.36086,95801.0,95800.0,0.152168]
[1733847798158,0.29057097,95810.0,95800.0,0.1]
[1733847798454,0.00010478,95825.0,95823.0,0.052155]
[1733847798646,0.00010478,95825.0,95809.0,0.00012]
[1733847798647,0.004,95844.0,95824.0,0.3608]
[1733847798847,0.052147,95839.0,95833.0,0.05215]
[1733847799044,0.052147,95839.0,95824.0,0.3608]
[1733847799353,0.29057097,95850.0,95833.0,0.05215]
[1733847799647,7.993e-05,95849.0,95843.0,0.052144]
[1733847800045,7.993e-05,95849.0,95832.0,0.3608]
[1733847800246,7.993e-05,95849.0,95837.0,0.052148]
[1733847800552,7.993e-05,95849.0,95832.0,0.3608]
[1733847801160,0.00307993,95849.0,95840.0,0.052146]
[1733847801451,0.00307993,95849.0,95832.0,0.3681764]
[1733847801655,0.00746596,95860.0,95832.0,0.3681764]
[1733847801656,0.00064,95864.0,95848.0,0.3608]
[1733847801859,0.3608,95874.0,95857.0,0.052137]
[1733847801860,0.052133,95865.0,95857.0,0.052137]
[1733847802058,0.052129,95873.0,95863.0,0.00012]
[1733847802259,0.052129,95873.0,95866.0,0.052132]
[1733847802452,0.00754552,95878.0,95856.0,0.3608]
[1733847802453,0.02037744,95876.0,95872.0,0.00012]
[1733847802758,0.00013382,95875.0,95872.0,0.00012]
[1733847802961,0.05226182,95875.0,95872.0,0.00012]
[1733847803257,6e-05,95879.0,95877.0,0.052126]
[1733847804151,6e-05,95879.0,95878.0,1.5]
[1733847804350,0.00018981,95879.0,95877.0,0.052126]
[1733847804753,6e-05,95878.0,95874.0,0.3608]
[1733847804952,6e-05,95878.0,95877.0,0.003]
[1733847805261,0.00118981,95879.0,95878.0,0.052126]
[1733847805451,0.00118981,95879.0,95878.0,1.552126]
[1733847805653,0.00118981,95879.0,95878.0,1.552246]
[1733847805852,0.00018981,95879.0,95878.0,1.552246]
[1733847806051,0.00118981,95879.0,95878.0,1.552246]
[1733847806460,0.00118981,95879.0,95878.0,1.50012]
[1733847807353,0.00118981,95879.0,95878.0,0.00012]
[1733847807662,0.00018981,95879.0,95878.0,0.00012]
[1733847807860,0.00018981,95879.0,95878.0,0.00112]
[1733847809256,0.00018981,95879.0,95878.0,0.00012]
[1733847809650,0.36098981,95879.0,95878.0,0.00012]
[1733847809853,0.052128,95873.0,95872.0,0.00012]
[1733847810067,0.3608,95874.0,95855.0,0.052138]
[1733847810360,0.052131,95868.0,95861.0,0.052135]
[1733847810557,0.00018981,95879.0,95855.0,0.30843411]
[1733847810759,0.00018981,95879.0,95877.0,0.052126]
[1733847811553,0.12143522,95878.0,95877.0,0.052126]
[1733847811967,0.00118981,95879.0,95877.0,0.052126]
[1733847812466,0.00018981,95879.0,95878.0,0.00012]
[1733847812860,0.15239389,95884.0,95878.0,0.00012]
[1733847813156,0.18094922,95893.0,95892.0,0.052118]
[1733847813356,0.24126562,95914.0,95893.0,0.052117]
[1733847813357,0.18245071,95905.0,95893.0,0.052117]
[1733847813561,0.18245071,95905.0,95904.0,0.36054611]
[1733847813868,0.12168411,95913.0,95904.0,0.30843411]
[1733847814059,0.09127037,95918.0,95908.0,0.052109]
[1733847814368,0.09127037,95918.0,95905.0,1.5]
[1733847814369,0.052107,95913.0,95912.0,0.00012]
[1733847815055,0.14335347,95913.0,95912.0,0.00012]
[1733847815256,0.14334594,95913.0,95912.0,0.00012]
[1733847815464,0.052107,95913.0,95912.0,0.00012]
[1733847816064,0.14333949,95913.0,95912.0,0.00012]
[1733847816265,0.14333931,95913.0,95912.0,0.00012]
[1733847816659,0.14333931,95913.0,95892.0,0.3542361]
[1733847816660,0.09123231,95913.0,95892.0,0.3542361]
[1733847816856,0.052114,95899.0,95894.0,0.052116]
[1733847817056,0.3608,95903.0,95880.0,0.00011324]
[1733847817269,0.05212,95889.0,95887.0,0.05212]
[1733847817671,0.09120771,95910.0,95909.0,0.052109]
[1733847817856,7.1e-07,95913.0,95912.0,0.052107]
[1733847818061,0.24126562,95964.0,95909.0,0.763349]
[1733847818062,0.12165448,95948.0,95940.0,0.052092]
[1733847818261,0.12165448,95953.0,95940.0,0.41226693]
[1733847818463,0.12165448,95966.0,95940.0,0.41238693]
[1733847818664,0.02109537,95975.0,95940.0,0.41238693]
[1733847818665,0.12165448,95975.0,95950.0,0.29057097]
[1733847818972,0.052078,95966.0,95964.0,0.052079]
[1733847819158,0.052074,95973.0,95959.0,0.3608]
[1733847819366,0.12165448,95975.0,95969.0,0.3608]